fUST/lending_fUST_20240125
["ID","MTS","AMOUNT","RATE_DAILY","PERIOD"]
[312707900,1706174342568,-1315.82,0.00053424,120]
[312707901,1706174342596,-500.0,0.00053424,120]
[312707902,1706174342623,-500.0,0.00053424,120]
[312707903,1706174342650,-500.0,0.00053424,120]
[312707904,1706174342677,-500.0,0.00053698,120]
[312707905,1706174342704,-732.6,0.00053698,120]
[312707906,1706174342731,-623.76,0.00053698,120]
[312707907,1706174342758,-500.0,0.00053698,120]
[312707908,1706174342784,-500.0,0.00053698,120]
[312707909,1706174342814,-500.0,0.00053698,120]
[312707910,1706174342841,-505.33,0.00053698,120]
[312707911,1706174342868,-541.46,0.00053698,120]
[312707912,1706174342896,-500.0,0.00053698,120]
[312707913,1706174342926,-621.56,0.00053698,120]
[312707914,1706174342955,-500.0,0.00053698,120]
[312707915,1706174342983,-500.0,0.00053698,120]
[312707916,1706174343037,-541.89,0.00053698,120]
[312707917,1706174343079,-500.0,0.00053698,120]
[312707918,1706174343105,-647.93,0.00053698,120]
[312707919,1706174343133,-500.0,0.00053698,120]
[312707920,1706174343160,-511.47,0.00053698,120]
[312707921,1706174343188,-500.0,0.00053698,120]
[312707922,1706174343214,-500.0,0.00053698,120]
[312707923,1706174343242,-1320.99,0.00053698,120]
[312707924,1706174343270,-500.0,0.00053698,120]
[312707925,1706174343298,-579.60473178,0.00053698,120]
[312707926,1706174343324,-933.93,0.00053698,120]
[312707927,1706174343350,-570.29,0.00053698,120]
[312707928,1706174343377,-500.0,0.00053698,120]
[312707929,1706174343403,-519.7,0.00053698,120]
[312707930,1706174343428,-1163.28,0.00053698,120]
[312707931,1706174343453,-375.44892181,0.00053698,120]
[312707932,1706174343480,-674.55,0.00053698,120]
[312707933,1706174343506,-500.0,0.00053698,120]
[312707934,1706174343535,-500.0,0.00053698,60]
[312707935,1706174343561,-500.0,0.00053698,120]
[312707936,1706174343588,-500.0,0.00053698,120]
[312707937,1706174343616,-1205.12,0.00053698,120]
[312707938,1706174343645,-500.0,0.00053698,120]
[312707939,1706174343672,-1112.52359514,0.00053698,120]
[312707940,1706174344011,-500.0,0.00049315,120]
[312707941,1706174344040,-500.0,0.00049589,120]
[312707942,1706174344069,-500.0,0.00049863,120]
[312707943,1706174344097,-500.0,0.00050136,120]
[312707944,1706174344125,-500.0,0.0005041,120]
[312707945,1706174344153,-500.0,0.00050684,120]
[312707946,1706174344187,-1951.66,0.00053698,120]
[312707947,1706174344214,-676.19,0.00053698,120]
[312707948,1706174344241,-1041.67,0.00053698,120]
[312707949,1706174344268,-500.0,0.00053698,120]
[312707950,1706174344294,-500.0,0.00053698,120]
[312707951,1706174344322,-545.27,0.00053698,120]
[312707952,1706174344349,-500.0,0.00053698,120]
[312707953,1706174344377,-522.23,0.00053698,120]
[312707954,1706174344407,-500.0,0.00053698,120]
[312707955,1706174344436,-1611.85,0.00053698,120]
[312707956,1706174344465,-500.0,0.00053698,120]
[312707957,1706174344494,-594.6,0.00053698,120]
[312707958,1706174344524,-773.17,0.00053698,120]
[312707959,1706174344552,-576.56,0.00053698,120]
[312707960,1706174344581,-1394.39,0.00053698,120]
[312707961,1706174344610,-1637.55,0.00053698,120]
[312707962,1706174344639,-2198.17,0.00053698,120]
[312707963,1706174344668,-508.35,0.00053698,120]
[312707964,1706174344697,-528.79,0.00053698,120]
[312707965,1706174344724,-500.0,0.00053698,120]
[312707966,1706174344752,-500.0,0.00053698,120]
[312707967,1706174344780,-501.86,0.00053698,120]
[312707968,1706174344807,-156.10584158,0.00053698,120]
[312707969,1706174344835,-1060.97,0.00053698,120]
[312707970,1706174344864,-500.0,0.00053698,120]
[312707971,1706174344892,-985.83,0.00053698,120]
[312707972,1706174344921,-961.65,0.00053698,120]
[312707973,1706174344949,-1315.82,0.00053698,120]
[312707974,1706174344976,-476.02694014,0.00053698,120]
[312707975,1706174345003,-500.0,0.00053698,120]
[312707976,1706174345031,-500.0,0.00053698,120]
[312707977,1706174345059,-787.54781234,0.000539,120]
[312707978,1706174345087,-500.0,0.00053972,120]
[312707979,1706174345119,-732.6,0.00053972,120]
[312707980,1706174345147,-623.76,0.00053972,120]
[312707981,1706174345175,-500.0,0.00053972,120]
[312707982,1706174345200,-500.0,0.00053972,120]
[312707983,1706174345228,-500.0,0.00053972,120]
[312707984,1706174345254,-505.33,0.00053972,120]
[312707985,1706174345284,-541.46,0.00053972,120]
[312707986,1706174345310,-500.0,0.00053972,120]
[312707987,1706174345335,-621.56,0.00053972,120]
[312707988,1706174345362,-500.0,0.00053972,120]
[312707989,1706174345389,-500.0,0.00053972,120]
[312707990,1706174345416,-541.89,0.00053972,120]
[312707991,1706174345445,-500.0,0.00053972,120]
[312707992,1706174345473,-647.93,0.00053972,120]
[312707993,1706174345500,-500.0,0.00053972,120]
[312707994,1706174345529,-511.47,0.00053972,120]
[312707995,1706174345557,-500.0,0.00053972,120]
[312707996,1706174345585,-231.52754172,0.00053972,120]
[312707997,1706174345614,-1320.99,0.00053972,120]
[312707998,1706174345641,-180.2061168,0.00053972,120]
[312707999,1706174345669,-933.93,0.00053972,120]
[312708000,1706174345697,-570.29,0.00053972,120]
[312708001,1706174345724,-500.0,0.00053972,120]
[312708002,1706174345751,-519.7,0.00053972,120]
[312708003,1706174345862,-1163.28,0.00053972,120]
[312708004,1706174345890,-674.55,0.00053972,120]
[312708005,1706174345922,-500.0,0.00053972,120]
[312708006,1706174345949,-500.0,0.00053972,60]
[312708007,1706174345976,-500.0,0.00053972,120]
[312708008,1706174346004,-500.0,0.00053972,120]
[312708009,1706174346031,-520.48545379,0.00053972,120]
[312708010,1706174346060,-1951.66,0.00053972,120]
[312708011,1706174346087,-676.19,0.00053972,120]
[312708012,1706174346115,-1041.67,0.00053972,120]
[312708013,1706174346144,-303.15218771,0.00053972,120]
[312708014,1706174346170,-500.0,0.00053972,120]
[312708015,1706174346198,-545.27,0.00053972,120]
[312708016,1706174346225,-500.0,0.00053972,120]
[312708017,1706174346252,-522.23,0.00053972,120]
[312708018,1706174346280,-500.0,0.00053972,120]
[312708019,1706174346307,-1611.85,0.00053972,120]
[312708020,1706174346334,-500.0,0.00053972,120]
[312708021,1706174346361,-594.6,0.00053972,120]
[312708022,1706174346388,-773.17,0.00053972,120]
[312708023,1706174346415,-576.56,0.00053972,120]
[312708024,1706174346442,-1394.39,0.00053972,120]
[312708025,1706174346470,-1637.55,0.00053972,120]
[312708026,1706174346499,-2198.17,0.00053972,120]
[312708027,1706174346527,-508.35,0.00053972,120]
[312708028,1706174346554,-528.79,0.00053972,120]
[312708029,1706174346581,-500.0,0.00053972,120]
[312708030,1706174346609,-500.0,0.00053972,120]
[312708031,1706174346636,-501.86,0.00053972,120]
[312708032,1706174346662,-1060.97,0.00053972,120]
[312708033,1706174346690,-500.0,0.00053972,120]
[312708034,1706174346717,-985.83,0.00053972,120]
[312708035,1706174346745,-961.65,0.00053972,120]
[312708036,1706174346772,-1315.82,0.00053972,120]
[312708037,1706174346801,-500.0,0.00053972,120]
[312708038,1706174346832,-384.40738008,0.00053972,120]
[312708039,1706174346859,-958.1322267,0.00054,120]
[312708040,1706174346888,-500.0,0.00054246,120]
[312708041,1706174346918,-732.6,0.00054246,120]
[312708042,1706174346947,-623.76,0.00054246,120]
[312708043,1706174346974,-500.0,0.00054246,120]
[312708044,1706174347001,-500.0,0.00054246,120]
[312708045,1706174347029,-500.0,0.00054246,120]
[312708046,1706174347056,-505.33,0.00054246,120]
[312708047,1706174347083,-541.46,0.00054246,120]
[312708048,1706174347109,-500.0,0.00054246,120]
[312708049,1706174347136,-621.56,0.00054246,120]
[312708050,1706174347163,-500.0,0.00054246,120]
[312708051,1706174347189,-500.0,0.00054246,120]
[312708052,1706174347218,-541.89,0.00054246,120]
[312708053,1706174347246,-500.0,0.00054246,120]
[312708054,1706174347274,-647.93,0.00054246,120]
[312708055,1706174347303,-562.7,0.00054246,120]
[312708056,1706174347330,-511.47,0.00054246,120]
[312708057,1706174347358,-500.0,0.00054246,120]
[312708058,1706174347385,-1320.99,0.00054246,120]
[312708059,1706174347414,-933.93,0.00054246,120]
[312708060,1706174347442,-570.29,0.00054246,120]
[312708061,1706174347468,-500.0,0.00054246,120]
[312708062,1706174347495,-519.7,0.00054246,120]
[312708063,1706174347521,-1163.28,0.00054246,120]
[312708064,1706174347547,-674.55,0.00054246,120]
[312708065,1706174347574,-500.0,0.00054246,120]
[312708066,1706174347602,-500.0,0.00054246,60]
[312708067,1706174347631,-500.0,0.00054246,120]
[312708068,1706174347657,-384.07460612,0.00054246,120]
[312708069,1706174347684,-1951.66,0.00054246,120]
[312708070,1706174347711,-676.19,0.00054246,120]
[312708071,1706174347742,-1041.67,0.00054246,120]
[312708072,1706174347844,-500.0,0.00054246,120]
[312708073,1706174347873,-545.27,0.00054246,120]
[312708074,1706174347900,-500.0,0.00054246,120]
[312708075,1706174347927,-522.23,0.00054246,120]
[312708076,1706174347955,-500.0,0.00054246,120]
[312708077,1706174347982,-1611.85,0.00054246,120]
[312708078,1706174348011,-500.0,0.00054246,120]
[312708079,1706174348041,-594.6,0.00054246,120]
[312708080,1706174348068,-773.17,0.00054246,120]
[312708081,1706174348094,-576.56,0.00054246,120]
[312708082,1706174348123,-1394.39,0.00054246,120]
[312708083,1706174348151,-1637.55,0.00054246,120]
[312708084,1706174348179,-2198.17,0.00054246,120]
[312708085,1706174348207,-508.35,0.00054246,120]
[312708086,1706174348235,-528.79,0.00054246,120]
[312708087,1706174348262,-500.0,0.00054246,120]
[312708088,1706174348288,-500.0,0.00054246,120]
[312708089,1706174348317,-501.86,0.00054246,120]
[312708090,1706174348346,-1060.97,0.00054246,120]
[312708091,1706174348374,-500.0,0.00054246,120]
[312708092,1706174348401,-985.83,0.00054246,120]
[312708093,1706174348427,-961.65,0.00054246,120]
[312708094,1706174348455,-1315.82,0.00054246,120]
[312708095,1706174348481,-500.0,0.00054246,120]
[312708096,1706174348509,-500.0,0.0005452,120]
[312708097,1706174348537,-732.6,0.0005452,120]
[312708098,1706174348563,-623.76,0.0005452,120]
[312708099,1706174348589,-500.0,0.0005452,120]
[312708100,1706174348617,-500.0,0.0005452,120]
[312708101,1706174348643,-500.0,0.0005452,120]
[312708102,1706174348672,-505.33,0.0005452,120]
[312708103,1706174348700,-541.46,0.0005452,120]
[312708104,1706174348727,-500.0,0.0005452,120]
[312708105,1706174348753,-621.56,0.0005452,120]
[312708106,1706174348780,-502.05552075,0.0005452,120]
[312708107,1706174348808,-500.0,0.0005452,120]
[312708108,1706174348836,-541.89,0.0005452,120]
[312708109,1706174348863,-500.0,0.0005452,120]
[312708110,1706174348891,-647.93,0.0005452,120]
[312708111,1706174348917,-511.47,0.0005452,120]
[312708112,1706174348944,-500.0,0.0005452,120]
[312708113,1706174348970,-1320.99,0.0005452,120]
[312708114,1706174348997,-933.93,0.0005452,120]
[312708115,1706174349024,-570.29,0.0005452,120]
[312708116,1706174349052,-500.0,0.0005452,120]
[312708117,1706174349080,-519.7,0.0005452,120]
[312708118,1706174349107,-1163.28,0.0005452,120]
[312708119,1706174349136,-674.55,0.0005452,120]
[312708120,1706174349163,-500.0,0.0005452,120]
[312708121,1706174349189,-500.0,0.0005452,60]
[312708122,1706174349217,-500.0,0.0005452,120]
[312708123,1706174349244,-1951.66,0.0005452,120]
[312708124,1706174349271,-676.19,0.0005452,120]
[312708125,1706174349297,-1041.67,0.0005452,120]
[312708126,1706174349326,-500.0,0.0005452,120]
[312708127,1706174349353,-545.27,0.0005452,120]
[312708128,1706174349380,-458.74656511,0.0005452,120]
[312708129,1706174349406,-522.23,0.0005452,120]
[312708130,1706174349432,-500.0,0.0005452,120]
[312708131,1706174349458,-1611.85,0.0005452,120]
[312708132,1706174349485,-500.0,0.0005452,120]
[312708133,1706174349514,-594.6,0.0005452,120]
[312708134,1706174349540,-773.17,0.0005452,120]
[312708135,1706174349568,-576.56,0.0005452,120]
[312708136,1706174349596,-1394.39,0.0005452,120]
[312708137,1706174349623,-1637.55,0.0005452,120]
[312708138,1706174349738,-2198.17,0.0005452,120]
[312708139,1706174349769,-508.35,0.0005452,120]
[312708140,1706174349798,-528.79,0.0005452,120]
[312708141,1706174349830,-500.0,0.0005452,120]
[312708142,1706174349858,-500.0,0.0005452,120]
[312708143,1706174349885,-501.86,0.0005452,120]
[312708144,1706174349913,-1060.97,0.0005452,120]
[312708145,1706174349941,-500.0,0.0005452,120]
[312708146,1706174349968,-985.83,0.0005452,120]
[312708147,1706174349994,-961.65,0.0005452,120]
[312708148,1706174350023,-1315.82,0.0005452,120]
[312708149,1706174350050,-500.0,0.0005452,120]
[312708150,1706174350078,-318.13725682,0.00054794,120]
[312708151,1706174350105,-732.6,0.00054794,120]
[312708152,1706174350132,-623.76,0.00054794,120]
[312708153,1706174350158,-556.0308834,0.00054794,120]
[312708154,1706174350185,-500.0,0.00054794,120]
[312708155,1706174350211,-500.0,0.00054794,120]
[312708156,1706174350237,-505.33,0.00054794,120]
[312708157,1706174350264,-541.46,0.00054794,120]
[312708158,1706174350290,-500.0,0.00054794,120]
[312708159,1706174350315,-621.56,0.00054794,120]
[312708160,1706174350342,-500.0,0.00054794,120]
[312708161,1706174350368,-541.89,0.00054794,120]
[312708162,1706174350394,-500.0,0.00054794,120]
[312708163,1706174350420,-647.93,0.00054794,120]
[312708164,1706174350446,-511.47,0.00054794,120]
[312708165,1706174350473,-418.72711296,0.00054794,120]
[312708166,1706174350499,-1320.99,0.00054794,120]
[312708167,1706174350526,-933.93,0.00054794,120]
[312708168,1706174350552,-570.29,0.00054794,120]
[312708169,1706174350579,-260.33672761,0.00054794,120]
[312708170,1706174350606,-519.7,0.00054794,120]
[312708171,1706174350632,-1163.28,0.00054794,120]
[312708172,1706174350660,-674.55,0.00054794,120]
[312708173,1706174350686,-500.0,0.00054794,120]
[312708174,1706174350713,-359.89840793,0.00054794,60]
[312708175,1706174350739,-500.0,0.00054794,120]
[312708176,1706174350764,-1951.66,0.00054794,120]
[312708177,1706174350790,-676.19,0.00054794,120]
[312708178,1706174350817,-1041.67,0.00054794,120]
[312708179,1706174350843,-554.19313756,0.00054794,120]
[312708180,1706174350870,-545.27,0.00054794,120]
[312708181,1706174350896,-522.23,0.00054794,120]
[312708182,1706174350924,-254.7489773,0.00054794,120]
[312708183,1706174350951,-1611.85,0.00054794,120]
[312708184,1706174350978,-500.0,0.00054794,120]
[312708185,1706174351005,-594.6,0.00054794,120]
[312708186,1706174351032,-773.17,0.00054794,120]
[312708187,1706174351060,-576.56,0.00054794,120]
[312708188,1706174351087,-1394.39,0.00054794,120]
[312708189,1706174351114,-1637.55,0.00054794,120]
[312708190,1706174351141,-2198.17,0.00054794,120]
[312708191,1706174351168,-508.35,0.00054794,120]
[312708192,1706174351194,-528.79,0.00054794,120]
[312708193,1706174351220,-500.0,0.00054794,120]
[312708194,1706174351246,-500.0,0.00054794,120]
[312708195,1706174351273,-501.86,0.00054794,120]
[312708196,1706174351300,-1060.97,0.00054794,120]
[312708197,1706174351327,-500.0,0.00054794,120]
[312708198,1706174351356,-985.83,0.00054794,120]
[312708199,1706174351387,-961.65,0.00054794,120]
[312708200,1706174351417,-1315.82,0.00054794,120]
[312708201,1706174351445,-500.0,0.00054794,120]
[312708202,1706174351586,500.0,0.00050958,120]
[312708203,1706174351617,500.0,0.00051232,120]
[312708204,1706174351649,500.0,0.00051506,120]
[312708205,1706174351680,500.0,0.0005178,120]
[312708206,1706174351714,500.0,0.00052054,120]
[312708207,1706174351749,500.0,0.00052328,120]
[312708208,1706174351782,500.0,0.00052602,120]
[312708209,1706174351815,482.7035057,0.00052876,120]
[312708210,1706174355318,500.0,0.00049315,120]
[312708211,1706174355585,500.0,0.00049589,120]
[312708212,1706174355878,635.92053195,0.00049863,120]
[312708253,1706175032277,-154.84515485,0.00030221,5]
[312708254,1706175032287,-154.84515485,0.00030222,4]
[312708256,1706175032296,-157.40899029,0.00030223,4]
[312708257,1706175032307,-531.37931156,0.00030223,4]
[312708258,1706175032315,-408.67068844,0.00030223,4]
[312708260,1706175032327,-2019.82768151,0.00030223,4]
[312708262,1706175032338,-2839.12570963,0.00030223,4]
[312708263,1706175032348,-500.0,0.00030224,4]
[312708265,1706175032357,-19121.5822133,0.00030236,2]
[312708267,1706175032366,-1884.03190377,0.00031158,2]
[312708268,1706175032375,-6970.7101733,0.00031199,4]
[312708269,1706175032386,-815.94988363,0.00031199,4]
[312708331,1706175041328,-2785.82,0.00031189,3]
[312708332,1706175041337,-1137.08,0.00031199,4]
[312708333,1706175041348,-251.39133245,0.00031199,4]
[312708334,1706175041360,-9512.98304222,0.00031199,4]
[312708406,1706175043455,-1325.99778569,0.00031199,4]
[312708447,1706176232502,-1253.9943907,0.00025926,2]
[312708449,1706176232511,-154.84515485,0.00025926,2]
[312708451,1706176232520,-154.84515485,0.00025926,4]
[312708453,1706176232529,-1484.80386677,0.00025927,2]
[312708455,1706176232539,-850.73963902,0.00025927,2]
[312708457,1706176232548,-1198.61763963,0.00025927,2]
[312708458,1706176232557,-4815.70009769,0.00025927,2]
[312708460,1706176232567,-7385.90525508,0.00025928,2]
[312708463,1706176232576,-156.09780848,0.00025928,2]
[312708465,1706176232585,-426.19756797,0.00025928,2]
[312708468,1706176232594,-154.84515485,0.00025928,2]
[312708471,1706176232603,-154.84515485,0.00025929,2]
[312708473,1706176232612,-155.00001712,0.00025929,2]
[312708476,1706176232621,-3920.61735066,0.00025929,2]
[312708479,1706176232630,-8131.70317206,0.00025929,2]
[312708482,1706176232639,-10546.60603151,0.00025929,2]
[312708485,1706176232648,-3486.99741621,0.00025929,2]
[312708488,1706176232657,-2129.87341007,0.0002593,3]
[312708492,1706176232668,-4583.28658993,0.0002593,3]
[312708494,1706176232677,-5594.3,0.0002593,3]
[312708496,1706176232686,-323.30988592,0.00025931,2]
[312708498,1706176232695,-500.0,0.00025931,2]
[312708500,1706176232705,-295.01713766,0.00025932,2]
[312708501,1706176232714,-14514.39600221,0.0002594,2]
[312708504,1706176232725,-10066.65,0.0002594,2]
[312708625,1706176238499,-329.68526722,0.00025925,2]
[312708627,1706176238508,-3952.5743667,0.0002594,2]
[312708629,1706176238521,-3923.1,0.0002594,2]
[312708631,1706176238533,-4377.47100913,0.0002594,2]
[312708634,1706176238544,-44396.14743862,0.0002594,2]
[312708636,1706176238553,-155.359626,0.00025955,2]
[312708638,1706176238562,-937.28901272,0.00025955,2]
[312708640,1706176238572,-13226.17446126,0.00025955,2]
[312708642,1706176238583,-24900.0,0.00025958,2]
[312708644,1706176238592,-177.26272348,0.00026816,3]
[312708646,1706176238601,-1335.91267832,0.00026917,2]
[312708647,1706176238610,-2447.68813394,0.00026929,2]
[312708648,1706176238620,-331.02777896,0.00027,2]
[312708649,1706176238629,-6769.61828109,0.00027931,2]
[312708651,1706176238639,-2117.42844319,0.00028042,2]
[312708652,1706176238648,-262.04425509,0.00028042,2]
[312708653,1706176238658,-155.13043777,0.00028042,2]
[312708654,1706176238667,-176.05257145,0.00028043,2]
[312708655,1706176238677,-263.75256717,0.00028043,2]
[312708656,1706176238686,-156.23501844,0.00028049,2]
[312708657,1706176238695,-228.0737053,0.00028062,2]
[312708658,1706176238704,-260.18097711,0.00028062,2]
[312708659,1706176238713,-189.89773254,0.00028062,2]
[312708660,1706176238723,-973.72138555,0.00028062,2]
[312708661,1706176238732,-293.65970894,0.00028062,2]
[312708662,1706176238747,-155.48074807,0.00028062,2]
[312708663,1706176238766,-7541.30269113,0.0002807,2]
[312708664,1706176238781,-156.21203672,0.00028539,2]
[312708665,1706176238793,-543.09257964,0.0002854,2]
[312708666,1706176238810,-500.0,0.0002854,2]
[312708667,1706176238826,-500.0,0.0002854,2]
[312708668,1706176238842,-500.0,0.0002854,2]
[312708669,1706176238859,-577.97246029,0.0002854,2]
[312708670,1706176238871,-500.0,0.0002854,2]
[312708671,1706176238886,-500.0,0.0002854,2]
[312708672,1706176238899,-500.0,0.0002854,2]
[312708673,1706176238912,-211.38916615,0.0002854,2]
[312708674,1706176238925,-500.0,0.0002854,2]
[312708675,1706176238939,-500.0,0.0002854,2]
[312708676,1706176238949,-500.0,0.0002854,2]
[312708677,1706176238964,-500.0,0.0002854,2]
[312708678,1706176238976,-500.0,0.0002854,2]
[312708679,1706176238990,-500.0,0.0002854,2]
[312708680,1706176239002,-359.77345468,0.0002854,2]
[312708681,1706176239015,-183.96259586,0.0002854,2]
[312708682,1706176239030,-500.0,0.0002854,2]
[312708683,1706176239044,-500.0,0.0002854,2]
[312708684,1706176239059,-500.0,0.0002854,2]
[312708685,1706176239073,-500.0,0.0002854,2]
[312708686,1706176239086,-500.0,0.0002854,2]
[312708687,1706176239097,-500.0,0.0002854,2]
[312708688,1706176239110,-500.0,0.0002854,2]
[312708689,1706176239124,-500.0,0.0002854,2]
[312708690,1706176239136,-500.0,0.0002854,2]
[312708691,1706176239150,-500.0,0.0002854,2]
[312708692,1706176239162,-500.0,0.0002854,2]
[312708693,1706176239172,-500.0,0.0002854,2]
[312708694,1706176239184,-500.0,0.0002854,2]
[312708695,1706176239197,-500.0,0.0002854,2]
[312708696,1706176239210,-500.0,0.0002854,2]
[312708697,1706176239222,-500.0,0.0002854,2]
[312708698,1706176239236,-500.0,0.0002854,2]
[312708699,1706176239248,-500.0,0.0002854,2]
[312708700,1706176239261,-500.0,0.0002854,2]
[312708701,1706176239273,-500.0,0.0002854,2]
[312708702,1706176239285,-500.0,0.0002854,2]
[312708703,1706176239298,-500.0,0.0002854,2]
[312708704,1706176239309,-500.0,0.0002854,2]
[312708705,1706176239322,-500.0,0.0002854,2]
[312708706,1706176239335,-500.0,0.0002854,2]
[312708707,1706176239347,-500.0,0.0002854,2]
[312708708,1706176239359,-500.0,0.0002854,2]
[312708709,1706176239371,-500.0,0.0002854,2]
[312708710,1706176239383,-500.0,0.0002854,2]
[312708711,1706176239396,-500.0,0.0002854,2]
[312708712,1706176239411,-500.0,0.0002854,2]
[312708713,1706176239423,-500.0,0.0002854,2]
[312708714,1706176239435,-500.0,0.0002854,2]
[312708715,1706176239448,-500.0,0.0002854,2]
[312708716,1706176239460,-500.0,0.0002854,2]
[312708717,1706176239471,-500.0,0.0002854,2]
[312708718,1706176239484,-500.0,0.0002854,2]
[312708719,1706176239496,-500.0,0.0002854,2]
[312708720,1706176239507,-500.0,0.0002854,2]
[312708721,1706176239520,-500.0,0.0002854,2]
[312708722,1706176239531,-500.0,0.0002854,2]
[312708723,1706176239543,-577.833987,0.0002854,2]
[312708724,1706176239555,-500.0,0.0002854,2]
[312708725,1706176239567,-500.0,0.0002854,2]
[312708726,1706176239578,-500.0,0.0002854,2]
[312708727,1706176239590,-500.0,0.0002854,2]
[312708728,1706176239602,-500.0,0.0002854,2]
[312708729,1706176239613,-500.0,0.0002854,2]
[312708730,1706176239625,-500.0,0.0002854,2]
[312708731,1706176239636,-192620.59231542,0.00028541,2]
[312708732,1706176239754,-200.0,0.00028551,15]
[312708733,1706176239769,-327.38963306,0.00028639,2]
[312708734,1706176239779,-155.43712027,0.00028639,2]
[312708735,1706176239788,-229.82325492,0.00028639,2]
[312708736,1706176239797,-2783.39018401,0.00028639,5]
[312708737,1706176239809,-271.63188504,0.00028639,2]
[312708738,1706176239818,-155.17005011,0.00028639,2]
[312708739,1706176239828,-290.18991434,0.00028639,2]
[312708740,1706176239837,-212.02726052,0.00028639,2]
[312708741,1706176239847,-645.92095854,0.00028639,2]
[312708742,1706176239857,-168.238959,0.00029975,2]
[312708743,1706176239866,-582.62840377,0.0003,3]
[312708744,1706176239876,-244.25363051,0.0003,4]
[312708745,1706176239886,-139264.62830083,0.0003,4]
[312708746,1706176239895,-154.84515485,0.0003,4]
[312708748,1706176239904,-688.78830185,0.0003,4]
[312708751,1706176239913,-195.4790082,0.0003,2]
[312708752,1706176239922,-153.0,0.00030137,2]
[312708753,1706176239932,-153.0,0.00030137,2]
[312708754,1706176239942,-153.0,0.00030137,2]
[312708756,1706176239951,-153.0,0.00030137,2]
[312708758,1706176239960,-153.0,0.00030137,2]
[312708760,1706176239969,-159.9744068,0.00030137,2]
[312708761,1706176239978,-153.0,0.00030441,2]
[312708762,1706176239987,-199.3339408,0.00030478,2]
[312708763,1706176239996,-204.7218203,0.00030478,2]
[312708764,1706176240005,-153.0,0.00030478,2]
[312708765,1706176240014,-153.0,0.00030578,2]
[312708766,1706176240023,-154.5184822,0.00030578,2]
[312708767,1706176240033,-153.0,0.00030578,2]
[312708768,1706176240042,-199.3339408,0.00030578,2]
[312708769,1706176240052,-154.6334572,0.00030578,2]
[312708770,1706176240062,-161.1858013,0.00030578,2]
[312708771,1706176240071,-153.0,0.00030578,2]
[312708772,1706176240081,-199.3339408,0.00030578,2]
[312708773,1706176240090,-153.0,0.00030578,2]
[312708774,1706176240100,-153.0,0.00030578,2]
[312708775,1706176240109,-153.0,0.00030578,2]
[312708776,1706176240119,-199.3339408,0.00030578,2]
[312708777,1706176240128,-153.0,0.00030578,2]
[312708778,1706176240138,-153.0,0.00030578,2]
[312708779,1706176240148,-199.3339408,0.00030578,2]
[312708780,1706176240157,-153.0,0.00030578,2]
[312708781,1706176240166,-153.0,0.00030578,2]
[312708782,1706176240175,-153.0,0.00030578,2]
[312708783,1706176240184,-153.0,0.00030578,2]
[312708784,1706176240193,-153.0,0.00030578,2]
[312708785,1706176240202,-153.0,0.00030578,2]
[312708786,1706176240212,-155.863998,0.00030578,2]
[312708787,1706176240221,-153.0,0.00030578,2]